[Event "Early-Titled-Tuesday-Blitz-February-06-2024"]
[Site "Chess.com"]
[Date "2024.02.06"]
[Round "2"]
[White "Aradhya2000"]
[Black "jcreyes69"]
[Result "1-0"]
[WhiteElo "2695"]
[BlackElo "2413"]
[TimeControl "180+1"]
[EndTime "8:18:34 PST"]
[Termination "Aradhya2000 won by checkmate"]

1. d4 {[%clk 0:03:00.9]} 1... d5 {[%clk 0:02:58.6]} 2. c4 {[%clk 0:03:01.1]}
2... e6 {[%clk 0:02:57.4]} 3. Nf3 {[%clk 0:03:01.5]} 3... a6 {[%clk 0:02:57.3]}
4. cxd5 {[%clk 0:02:57.4]} 4... exd5 {[%clk 0:02:58.2]} 5. Nc3 {[%clk
0:02:57.5]} 5... Nf6 {[%clk 0:02:54.7]} 6. Bg5 {[%clk 0:02:55.8]} 6... Be6
{[%clk 0:02:52.6]} 7. Bxf6 {[%clk 0:02:55.8]} 7... Qxf6 {[%clk 0:02:52.1]} 8.
Qb3 {[%clk 0:02:56.5]} 8... Ra7 {[%clk 0:02:49.9]} 9. h4 {[%clk 0:02:52.2]} 9...
b5 {[%clk 0:02:27.3]} 10. a4 {[%clk 0:02:00.4]} 10... b4 {[%clk 0:02:17.4]} 11.
Nxd5 {[%clk 0:01:48.1]} 11... Qd8 {[%clk 0:01:49.2]} 12. e4 {[%clk 0:01:47.3]}
12... c6 {[%clk 0:01:49.3]} 13. Qe3 {[%clk 0:01:46.9]} 13... cxd5 {[%clk
0:01:45.1]} 14. exd5 {[%clk 0:01:46.8]} 14... Qxd5 {[%clk 0:01:43.7]} 15. Rc1
{[%clk 0:01:22.3]} 15... Re7 {[%clk 0:01:34.8]} 16. Ne5 {[%clk 0:01:14]} 16...
f6 {[%clk 0:01:22.7]} 17. Bc4 {[%clk 0:01:09.2]} 17... Qd6 {[%clk 0:01:11]} 18.
O-O {[%clk 0:00:55.9]} 18... Bxc4 {[%clk 0:00:42.2]} 19. Nxc4 {[%clk 0:00:54.3]}
19... Rxe3 {[%clk 0:00:41.9]} 20. Nxd6+ {[%clk 0:00:54]} 20... Bxd6 {[%clk
0:00:42.8]} 21. Rc8+ {[%clk 0:00:49.8]} 21... Kf7 {[%clk 0:00:30]} 22. Rxh8
{[%clk 0:00:50.7]} 22... Rb3 {[%clk 0:00:20.1]} 23. Rb1 {[%clk 0:00:30.6]} 23...
Nc6 {[%clk 0:00:17.1]} 24. Kf1 {[%clk 0:00:29.4]} 24... Nxd4 {[%clk 0:00:17.1]}
25. h5 {[%clk 0:00:26.7]} 25... Nf5 {[%clk 0:00:14.3]} 26. Rc8 {[%clk
0:00:19.7]} 26... Be5 {[%clk 0:00:12.1]} 27. Rc6 {[%clk 0:00:14.3]} 27... a5
{[%clk 0:00:11.6]} 28. Rc5 {[%clk 0:00:13.4]} 28... Nd6 {[%clk 0:00:11.7]} 29.
Rxa5 {[%clk 0:00:13.2]} 29... Nc4 {[%clk 0:00:12]} 30. Rd5 {[%clk 0:00:13.1]}
30... Ke6 {[%clk 0:00:12]} 31. Rd8 {[%clk 0:00:08.7]} 31... Rxb2 {[%clk
0:00:11.6]} 32. Rxb2 {[%clk 0:00:08.5]} 32... Nxb2 {[%clk 0:00:12.5]} 33. Ke2
{[%clk 0:00:08]} 33... Nc4 {[%clk 0:00:12.5]} 34. Kd3 {[%clk 0:00:06.1]} 34...
Nb2+ {[%clk 0:00:12.6]} 35. Kc2 {[%clk 0:00:06.2]} 35... Nxa4 {[%clk 0:00:13.5]}
36. Kb3 {[%clk 0:00:06.5]} 36... Nc5+ {[%clk 0:00:11.8]} 37. Kxb4 {[%clk
0:00:07.2]} 37... Ne4 {[%clk 0:00:12]} 38. f3 {[%clk 0:00:06.9]} 38... Ng3
{[%clk 0:00:10.9]} 39. h6 {[%clk 0:00:06.9]} 39... gxh6 {[%clk 0:00:11.8]} 40.
Rh8 {[%clk 0:00:06.5]} 40... Kf5 {[%clk 0:00:09.8]} 41. Rxh7 {[%clk 0:00:06.9]}
41... Bf4 {[%clk 0:00:09.8]} 42. Kc4 {[%clk 0:00:06.4]} 42... Kg5 {[%clk
0:00:08.6]} 43. Kd3 {[%clk 0:00:06.4]} 43... Nf5 {[%clk 0:00:08.5]} 44. Rh8
{[%clk 0:00:06.6]} 44... Ne3 {[%clk 0:00:07.7]} 45. Rg8+ {[%clk 0:00:06.8]}
45... Kh4 {[%clk 0:00:07.3]} 46. g3+ {[%clk 0:00:06.7]} 46... Bxg3 {[%clk
0:00:07.6]} 47. Kxe3 {[%clk 0:00:07.6]} 47... Be5 {[%clk 0:00:07.4]} 48. Ke4
{[%clk 0:00:07.5]} 48... Bc7 {[%clk 0:00:06.8]} 49. f4 {[%clk 0:00:07.8]} 49...
h5 {[%clk 0:00:06.5]} 50. Kf5 {[%clk 0:00:08.5]} 50... Bd6 {[%clk 0:00:04.6]}
51. Rg6 {[%clk 0:00:09]} 51... Kh3 {[%clk 0:00:04.1]} 52. Rxf6 {[%clk
0:00:09.3]} 52... Bb8 {[%clk 0:00:03.7]} 53. Rh6 {[%clk 0:00:09.4]} 53... h4
{[%clk 0:00:04.1]} 54. Kg5 {[%clk 0:00:09.8]} 54... Be5 {[%clk 0:00:03.3]} 55.
Rxh4+ {[%clk 0:00:09.9]} 55... Kg3 {[%clk 0:00:04.2]} 56. fxe5 {[%clk
0:00:10.5]} 56... Kf3 {[%clk 0:00:04.2]} 57. e6 {[%clk 0:00:11.4]} 57... Kg2
{[%clk 0:00:04.3]} 58. e7 {[%clk 0:00:12.3]} 58... Kf2 {[%clk 0:00:05.2]} 59.
e8=Q {[%clk 0:00:11.9]} 59... Kg1 {[%clk 0:00:06.1]} 60. Qe1+ {[%clk 0:00:11.6]}
60... Kg2 {[%clk 0:00:07]} 61. Rg4+ {[%clk 0:00:11.7]} 61... Kf3 {[%clk
0:00:07.9]} 62. Qe4+ {[%clk 0:00:11.8]} 62... Kf2 {[%clk 0:00:08.2]} 63. Rg2+
{[%clk 0:00:12.6]} 63... Kf1 {[%clk 0:00:09.1]} 64. Qe2# {[%clk 0:00:12.9]} 1-0

[Event "Early-Titled-Tuesday-Blitz-February-06-2024"]
[Site "Chess.com"]
[Date "2024.02.06"]
[Round "2"]
[White "Iunusovnuriddin"]
[Black "MaxLeto"]
[Result "0-1"]
[WhiteElo "2301"]
[BlackElo "2505"]
[TimeControl "180+1"]
[EndTime "8:18:34 PST"]
[Termination "MaxLeto won by resignation"]

1. e4 {[%clk 0:01:24.1]} 1... c5 {[%clk 0:02:57.8]} 2. c3 {[%clk 0:01:23.9]}
2... Nf6 {[%clk 0:02:56.3]} 3. e5 {[%clk 0:01:24.3]} 3... Nd5 {[%clk 0:02:56.8]}
4. d4 {[%clk 0:01:25]} 4... cxd4 {[%clk 0:02:57.7]} 5. Qxd4 {[%clk 0:01:25.7]}
5... e6 {[%clk 0:02:57.1]} 6. Nf3 {[%clk 0:01:26.4]} 6... Nc6 {[%clk 0:02:57.6]}
7. Qe4 {[%clk 0:01:26.7]} 7... d6 {[%clk 0:02:58]} 8. Bb5 {[%clk 0:01:26]} 8...
Bd7 {[%clk 0:02:57.2]} 9. c4 {[%clk 0:01:25.6]} 9... Nc7 {[%clk 0:02:56.7]} 10.
Bg5 {[%clk 0:01:24.5]} 10... Qb8 {[%clk 0:02:42]} 11. O-O {[%clk 0:01:23.4]}
11... Nxb5 {[%clk 0:02:38.2]} 12. cxb5 {[%clk 0:01:23.4]} 12... Nxe5 {[%clk
0:02:38.7]} 13. Nxe5 {[%clk 0:01:23.8]} 13... dxe5 {[%clk 0:02:39.6]} 14. Nc3
{[%clk 0:01:24.4]} 14... f6 {[%clk 0:01:39.7]} 15. Be3 {[%clk 0:01:12.7]} 15...
Be7 {[%clk 0:01:07.4]} 16. Rad1 {[%clk 0:01:12]} 16... Bc8 {[%clk 0:01:07.7]}
17. f4 {[%clk 0:01:08.8]} 17... exf4 {[%clk 0:00:56.4]} 18. Bxf4 {[%clk
0:01:09.7]} 18... e5 {[%clk 0:00:57.1]} 19. Nd5 {[%clk 0:01:09.1]} 19... Bc5+
{[%clk 0:00:52.9]} 20. Be3 {[%clk 0:00:28]} 20... Bxe3+ {[%clk 0:00:52.6]} 21.
Qxe3 {[%clk 0:00:26.4]} 21... O-O {[%clk 0:00:53.5]} 22. Rc1 {[%clk 0:00:16.4]}
22... Qd6 {[%clk 0:00:42.8]} 23. Rfd1 {[%clk 0:00:15.8]} 23... Bg4 {[%clk
0:00:36.5]} 24. Rd2 {[%clk 0:00:13.9]} 24... Rfd8 {[%clk 0:00:30.9]} 25. h3
{[%clk 0:00:12]} 25... Bh5 {[%clk 0:00:27.8]} 26. Rcc2 {[%clk 0:00:07.4]} 26...
Bg6 {[%clk 0:00:07.4]} 27. Nc3 {[%clk 0:00:07.8]} 27... Qe7 {[%clk 0:00:06.2]}
28. Rxd8+ {[%clk 0:00:08.2]} 28... Rxd8 {[%clk 0:00:07.1]} 29. Rd2 {[%clk
0:00:08.8]} 29... b6 {[%clk 0:00:07.2]} 30. Rxd8+ {[%clk 0:00:08.4]} 30... Qxd8
{[%clk 0:00:08.1]} 31. Qe2 {[%clk 0:00:08.6]} 31... Bd3 {[%clk 0:00:06.8]} 32.
Qd2 {[%clk 0:00:08]} 32... Qd4+ {[%clk 0:00:06.9]} 33. Kh2 {[%clk 0:00:08.6]}
33... g5 {[%clk 0:00:06.5]} 34. g3 {[%clk 0:00:07]} 34... h5 {[%clk 0:00:06.9]}
35. a4 {[%clk 0:00:07.5]} 35... Kg7 {[%clk 0:00:06]} 36. a5 {[%clk 0:00:04.9]}
36... bxa5 {[%clk 0:00:05.6]} 37. Nd1 {[%clk 0:00:04]} 37... Bxb5 {[%clk
0:00:03.7]} 38. Qc2 {[%clk 0:00:03.1]} 38... a4 {[%clk 0:00:02.5]} 39. Qc7+
{[%clk 0:00:03.8]} 39... Kg6 {[%clk 0:00:02.4]} 40. Nc3 {[%clk 0:00:03.7]} 40...
Qd2+ {[%clk 0:00:02.2]} 41. Kh1 {[%clk 0:00:03.9]} 41... Qc1+ {[%clk 0:00:02.3]}
42. Kg2 {[%clk 0:00:04]} 42... Qxb2+ {[%clk 0:00:02.9]} 43. Kf3 {[%clk
0:00:04.4]} 43... Qb3 {[%clk 0:00:03]} 44. Ke3 {[%clk 0:00:04.2]} 44... Qc4
{[%clk 0:00:02.9]} 45. Qa5 {[%clk 0:00:02.7]} 45... Qd3+ {[%clk 0:00:03.3]} 46.
Kf2 {[%clk 0:00:03]} 46... Qd4+ {[%clk 0:00:03.6]} 47. Ke1 {[%clk 0:00:03]}
47... Qc4 {[%clk 0:00:04.5]} 48. Qxb5 {[%clk 0:00:02.8]} 48... Qxc3+ {[%clk
0:00:04.3]} 49. Ke2 {[%clk 0:00:03.4]} 49... Qb3 {[%clk 0:00:04.4]} 50. Qe8+
{[%clk 0:00:03.8]} 50... Kf5 {[%clk 0:00:04.5]} 51. Qd7+ {[%clk 0:00:03.7]}
51... Ke4 {[%clk 0:00:04.5]} 52. Qc6+ {[%clk 0:00:02.5]} 52... Kd4 {[%clk
0:00:04.1]} 53. Qd6+ {[%clk 0:00:02.4]} 53... Qd5 {[%clk 0:00:03.7]} 54. Qb4+
{[%clk 0:00:02]} 54... Qc4+ {[%clk 0:00:03.8]} 0-1

[Event "Early-Titled-Tuesday-Blitz-February-06-2024"]
[Site "Chess.com"]
[Date "2024.02.06"]
[Round "2"]
[White "leschebaza"]
[Black "luckyswitchback"]
[Result "0-1"]
[WhiteElo "2419"]
[BlackElo "2703"]
[TimeControl "180+1"]
[EndTime "8:18:36 PST"]
[Termination "luckyswitchback won on time"]

1. Nf3 {[%clk 0:03:00.9]} 1... d5 {[%clk 0:02:59.7]} 2. c4 {[%clk 0:02:58.8]}
2... d4 {[%clk 0:02:59.2]} 3. d3 {[%clk 0:02:58.9]} 3... Nc6 {[%clk 0:02:57.2]}
4. e3 {[%clk 0:02:58]} 4... e5 {[%clk 0:02:46.5]} 5. exd4 {[%clk 0:02:57.7]}
5... exd4 {[%clk 0:02:44.7]} 6. g3 {[%clk 0:02:50.2]} 6... Nf6 {[%clk
0:02:41.5]} 7. Bg2 {[%clk 0:02:49.8]} 7... Bb4+ {[%clk 0:02:41.5]} 8. Bd2 {[%clk
0:02:49.8]} 8... a5 {[%clk 0:02:41.3]} 9. O-O {[%clk 0:02:49.6]} 9... O-O {[%clk
0:02:41.2]} 10. Na3 {[%clk 0:02:43.4]} 10... Bg4 {[%clk 0:02:26.6]} 11. Bf4
{[%clk 0:02:06.5]} 11... Nh5 {[%clk 0:02:15.9]} 12. Qc1 {[%clk 0:01:56.3]} 12...
Nxf4 {[%clk 0:02:04.2]} 13. Qxf4 {[%clk 0:01:57.2]} 13... Qd7 {[%clk 0:01:59.5]}
14. Nb5 {[%clk 0:01:53.8]} 14... Rac8 {[%clk 0:01:44.5]} 15. Ne5 {[%clk
0:00:56.5]} 15... Nxe5 {[%clk 0:01:38.4]} 16. Qxe5 {[%clk 0:00:57.4]} 16... c6
{[%clk 0:00:59.2]} 17. Nxd4 {[%clk 0:00:21.5]} 17... Rcd8 {[%clk 0:00:52.5]} 18.
Nc2 {[%clk 0:00:13.9]} 18... Rfe8 {[%clk 0:00:48.4]} 19. Qg5 {[%clk 0:00:12.3]}
19... Be2 {[%clk 0:00:46.2]} 20. Rfe1 {[%clk 0:00:12.4]} 20... Bxe1 {[%clk
0:00:45.3]} 21. Rxe1 {[%clk 0:00:10.3]} 21... Bxd3 {[%clk 0:00:42.4]} 22. Rxe8+
{[%clk 0:00:09.8]} 22... Rxe8 {[%clk 0:00:40.9]} 23. Ne3 {[%clk 0:00:10.7]}
23... Bg6 {[%clk 0:00:37.1]} 24. h4 {[%clk 0:00:10.5]} 24... Qe7 {[%clk
0:00:33.4]} 25. Qxa5 {[%clk 0:00:10.6]} 25... f6 {[%clk 0:00:32.2]} 26. h5
{[%clk 0:00:10.3]} 26... Bf7 {[%clk 0:00:32.1]} 27. a3 {[%clk 0:00:09.8]} 27...
h6 {[%clk 0:00:29.3]} 28. Bf3 {[%clk 0:00:10.2]} 28... Qe5 {[%clk 0:00:28.2]}
29. Qb4 {[%clk 0:00:09.2]} 29... Bxh5 {[%clk 0:00:26]} 30. Bxh5 {[%clk
0:00:10.1]} 30... Qxh5 {[%clk 0:00:26.5]} 31. Qxb7 {[%clk 0:00:11]} 31... Qf3
{[%clk 0:00:22.8]} 32. Qd7 {[%clk 0:00:06.9]} 32... Rb8 {[%clk 0:00:15.1]} 33.
b4 {[%clk 0:00:06]} 33... Qh5 {[%clk 0:00:09.4]} 34. Qxc6 {[%clk 0:00:05.3]}
34... Rd8 {[%clk 0:00:09.1]} 35. Nd5 {[%clk 0:00:05.1]} 35... Qf7 {[%clk
0:00:08.8]} 36. Qc7 {[%clk 0:00:04.3]} 36... Qe8 {[%clk 0:00:02.3]} 37. b5
{[%clk 0:00:04.4]} 37... Rd7 {[%clk 0:00:02.7]} 38. Qf4 {[%clk 0:00:04.1]} 38...
Qe1+ {[%clk 0:00:02.4]} 39. Kg2 {[%clk 0:00:04.6]} 39... Qe8 {[%clk 0:00:03.3]}
40. Qf3 {[%clk 0:00:05]} 40... Rf7 {[%clk 0:00:03.7]} 41. a4 {[%clk 0:00:05]}
41... Qe5 {[%clk 0:00:04.3]} 42. a5 {[%clk 0:00:05.4]} 42... h5 {[%clk 0:00:05]}
43. a6 {[%clk 0:00:05.7]} 43... h4 {[%clk 0:00:05.6]} 44. Qf4 {[%clk 0:00:06.2]}
44... h3+ {[%clk 0:00:05.2]} 45. Kxh3 {[%clk 0:00:06.5]} 45... Qe1 {[%clk
0:00:04.5]} 46. Kg2 {[%clk 0:00:06.9]} 46... Qa1 {[%clk 0:00:05.1]} 47. Qe3
{[%clk 0:00:06.6]} 47... Qa4 {[%clk 0:00:04.9]} 48. Qd3 {[%clk 0:00:06.4]} 48...
Kf8 {[%clk 0:00:04.2]} 49. Nf4 {[%clk 0:00:06.5]} 49... Kg8 {[%clk 0:00:03.9]}
50. Ng6 {[%clk 0:00:06.3]} 50... Qa5 {[%clk 0:00:04.1]} 51. Qd8+ {[%clk
0:00:06.5]} 51... Qxd8 {[%clk 0:00:04.2]} 52. a7 {[%clk 0:00:07.1]} 52... Qa8+
{[%clk 0:00:04.4]} 53. f3 {[%clk 0:00:07]} 53... Qxa7 {[%clk 0:00:05.3]} 54. c5
{[%clk 0:00:07.9]} 54... Qxc5 {[%clk 0:00:05.6]} 55. Ne7+ {[%clk 0:00:08.4]}
55... Qxe7 {[%clk 0:00:05.7]} 0-1

[Event "Early-Titled-Tuesday-Blitz-February-06-2024"]
[Site "Chess.com"]
[Date "2024.02.06"]
[Round "2"]
[White "Manon-reja"]
[Black "ErikRonka"]
[Result "0-1"]
[WhiteElo "2319"]
[BlackElo "2521"]
[TimeControl "180+1"]
[EndTime "8:18:37 PST"]
[Termination "ErikRonka won on time"]

1. e4 {[%clk 0:03:00.9]} 1... c6 {[%clk 0:02:58.4]} 2. d4 {[%clk 0:03:00]} 2...
d5 {[%clk 0:02:59.3]} 3. exd5 {[%clk 0:02:55.5]} 3... cxd5 {[%clk 0:03:00.2]} 4.
c4 {[%clk 0:02:55.7]} 4... Nf6 {[%clk 0:03:01.1]} 5. Nc3 {[%clk 0:02:54.6]} 5...
g6 {[%clk 0:03:02]} 6. Nf3 {[%clk 0:02:50]} 6... Bg7 {[%clk 0:03:02.1]} 7. cxd5
{[%clk 0:02:49.5]} 7... Nxd5 {[%clk 0:03:03]} 8. Bc4 {[%clk 0:02:49.2]} 8... Nb6
{[%clk 0:03:03.4]} 9. Bb3 {[%clk 0:02:48.6]} 9... O-O {[%clk 0:03:04]} 10. O-O
{[%clk 0:02:46.9]} 10... Nc6 {[%clk 0:03:04.7]} 11. d5 {[%clk 0:02:35.1]} 11...
Na5 {[%clk 0:03:04.2]} 12. Be3 {[%clk 0:02:16.5]} 12... Nxb3 {[%clk 0:02:56.3]}
13. Qxb3 {[%clk 0:02:14.8]} 13... Bf5 {[%clk 0:02:40.3]} 14. Bd4 {[%clk
0:02:04.8]} 14... Rc8 {[%clk 0:02:38.2]} 15. Bxg7 {[%clk 0:02:00]} 15... Kxg7
{[%clk 0:02:39.1]} 16. Rfd1 {[%clk 0:01:57.1]} 16... Nc4 {[%clk 0:02:35.8]} 17.
Qxb7 {[%clk 0:01:48.9]} 17... a5 {[%clk 0:02:34.3]} 18. b3 {[%clk 0:01:06.7]}
18... Nd6 {[%clk 0:02:30.9]} 19. Qa7 {[%clk 0:01:06.4]} 19... Qc7 {[%clk
0:02:23.2]} 20. Qd4+ {[%clk 0:01:02.7]} 20... Kg8 {[%clk 0:02:23]} 21. Rac1
{[%clk 0:01:03.3]} 21... Nb5 {[%clk 0:02:15.6]} 22. Qc4 {[%clk 0:00:41.4]} 22...
Nd6 {[%clk 0:02:01.1]} 23. Qxc7 {[%clk 0:00:40.1]} 23... Rxc7 {[%clk 0:02:02]}
24. Nd4 {[%clk 0:00:39.9]} 24... Rfc8 {[%clk 0:02:00.7]} 25. Nce2 {[%clk
0:00:39.4]} 25... Be4 {[%clk 0:01:55]} 26. Nc6 {[%clk 0:00:25.6]} 26... Kf8
{[%clk 0:01:54.8]} 27. Nxa5 {[%clk 0:00:24.3]} 27... Rxc1 {[%clk 0:01:33.9]} 28.
Rxc1 {[%clk 0:00:25.2]} 28... Ra8 {[%clk 0:01:34.7]} 29. b4 {[%clk 0:00:24.3]}
29... Bxd5 {[%clk 0:01:34.9]} 30. a4 {[%clk 0:00:24.6]} 30... Rb8 {[%clk
0:01:26.3]} 31. b5 {[%clk 0:00:24.1]} 31... Ra8 {[%clk 0:01:26.8]} 32. Nc3
{[%clk 0:00:19.5]} 32... Rxa5 {[%clk 0:01:19.1]} 33. Nxd5 {[%clk 0:00:19.7]}
33... Rxa4 {[%clk 0:01:19.9]} 34. b6 {[%clk 0:00:20.4]} 34... Ra2 {[%clk
0:01:15.5]} 35. Rb1 {[%clk 0:00:19.3]} 35... Ra8 {[%clk 0:01:14.7]} 36. h3
{[%clk 0:00:18]} 36... Rb8 {[%clk 0:01:15.3]} 37. Nc7 {[%clk 0:00:13.3]} 37...
Nc8 {[%clk 0:01:11.3]} 38. Nd5 {[%clk 0:00:07.9]} 38... e6 {[%clk 0:01:10.6]}
39. Nf6 {[%clk 0:00:08.3]} 39... Rb7 {[%clk 0:01:08.4]} 40. Nxh7+ {[%clk
0:00:07.2]} 40... Ke7 {[%clk 0:01:08.5]} 41. Ng5 {[%clk 0:00:07]} 41... e5
{[%clk 0:01:02]} 42. Ne4 {[%clk 0:00:06]} 42... Rxb6 {[%clk 0:01:01.5]} 43. Rxb6
{[%clk 0:00:05.4]} 43... Nxb6 {[%clk 0:01:02.4]} 44. g4 {[%clk 0:00:05.7]} 44...
Ke6 {[%clk 0:01:03]} 45. g5 {[%clk 0:00:05.6]} 45... Nd5 {[%clk 0:01:03.5]} 46.
Kg2 {[%clk 0:00:05.3]} 46... Nf4+ {[%clk 0:01:04]} 47. Kg3 {[%clk 0:00:05]}
47... Kf5 {[%clk 0:01:04.9]} 48. f3 {[%clk 0:00:05.1]} 48... Nh5+ {[%clk
0:01:03.3]} 49. Kf2 {[%clk 0:00:04.6]} 49... Ng7 {[%clk 0:01:01]} 50. h4 {[%clk
0:00:05]} 50... Ne8 {[%clk 0:00:56.2]} 51. Ng3+ {[%clk 0:00:04.9]} 51... Ke6
{[%clk 0:00:55.5]} 52. Ne4 {[%clk 0:00:05.1]} 52... Ng7 {[%clk 0:00:55.7]} 53.
Kg3 {[%clk 0:00:04.9]} 53... Nf5+ {[%clk 0:00:55.8]} 54. Kg4 {[%clk 0:00:05.3]}
54... Nd4 {[%clk 0:00:56.7]} 55. h5 {[%clk 0:00:04.6]} 55... gxh5+ {[%clk
0:00:56.6]} 56. Kxh5 {[%clk 0:00:05.5]} 56... Nxf3 {[%clk 0:00:57.2]} 57. Kg4
{[%clk 0:00:06.1]} 57... Nd4 {[%clk 0:00:57.5]} 58. Kh5 {[%clk 0:00:03.7]} 58...
Nc6 {[%clk 0:00:55.6]} 59. g6 {[%clk 0:00:03.1]} 59... f5 {[%clk 0:00:56.2]} 60.
g7 {[%clk 0:00:03]} 60... Ne7 {[%clk 0:00:56.8]} 61. Ng5+ {[%clk 0:00:03.5]}
61... Kf6 {[%clk 0:00:53.6]} 62. Kh6 {[%clk 0:00:02.9]} 62... e4 {[%clk
0:00:49.6]} 63. Nh7+ {[%clk 0:00:03.5]} 63... Ke5 {[%clk 0:00:47.4]} 64. Ng5
{[%clk 0:00:04]} 64... f4 {[%clk 0:00:45.5]} 65. Kh7 {[%clk 0:00:02.6]} 65... f3
{[%clk 0:00:44.8]} 66. Nh3 {[%clk 0:00:02.1]} 66... e3 {[%clk 0:00:43.7]} 0-1

[Event "Early-Titled-Tuesday-Blitz-February-06-2024"]
[Site "Chess.com"]
[Date "2024.02.06"]
[Round "2"]
[White "Schattman"]
[Black "Makswolf200817"]
[Result "0-1"]
[WhiteElo "2427"]
[BlackElo "2724"]
[TimeControl "180+1"]
[EndTime "8:18:38 PST"]
[Termination "Makswolf200817 won on time"]

1. b3 {[%clk 0:02:50.9]} 1... e5 {[%clk 0:02:59.4]} 2. c4 {[%clk 0:02:48.4]}
2... b5 {[%clk 0:02:55]} 3. cxb5 {[%clk 0:02:46.4]} 3... a6 {[%clk 0:02:55]} 4.
bxa6 {[%clk 0:02:45.5]} 4... d5 {[%clk 0:02:54.3]} 5. a7 {[%clk 0:02:41.4]} 5...
Rxa7 {[%clk 0:02:53.9]} 6. Bb2 {[%clk 0:02:38.9]} 6... Bd6 {[%clk 0:02:45.1]} 7.
Nf3 {[%clk 0:02:38.6]} 7... Qe7 {[%clk 0:02:38.5]} 8. e3 {[%clk 0:02:34.9]} 8...
Nf6 {[%clk 0:02:33.9]} 9. Bb5+ {[%clk 0:02:34.2]} 9... c6 {[%clk 0:02:33.1]} 10.
Be2 {[%clk 0:02:32.1]} 10... O-O {[%clk 0:02:32.3]} 11. d3 {[%clk 0:02:25.5]}
11... Na6 {[%clk 0:02:21.8]} 12. O-O {[%clk 0:02:18.9]} 12... Rd7 {[%clk
0:02:19.4]} 13. Nc3 {[%clk 0:02:06.6]} 13... Bb7 {[%clk 0:02:16.9]} 14. d4
{[%clk 0:02:04.9]} 14... e4 {[%clk 0:02:16.1]} 15. Ne5 {[%clk 0:02:04.3]} 15...
Bxe5 {[%clk 0:02:07.7]} 16. dxe5 {[%clk 0:02:04.6]} 16... Qxe5 {[%clk
0:02:08.5]} 17. Na4 {[%clk 0:02:03.2]} 17... Qg5 {[%clk 0:02:01.7]} 18. Bxa6
{[%clk 0:02:00.3]} 18... Bxa6 {[%clk 0:02:01.5]} 19. Bxf6 {[%clk 0:01:50.1]}
19... Qxf6 {[%clk 0:01:52.7]} 20. Nc5 {[%clk 0:01:47.5]} 20... Ra7 {[%clk
0:01:51.2]} 21. Nxa6 {[%clk 0:01:43.4]} 21... Rxa6 {[%clk 0:01:51.1]} 22. Qc2
{[%clk 0:01:43.5]} 22... Rfa8 {[%clk 0:01:48.7]} 23. Rfc1 {[%clk 0:01:27.4]}
23... h5 {[%clk 0:01:44.1]} 24. h3 {[%clk 0:01:25.2]} 24... h4 {[%clk
0:01:42.8]} 25. a4 {[%clk 0:01:21.3]} 25... Qg5 {[%clk 0:01:37]} 26. Kh1 {[%clk
0:01:10.4]} 26... Rb8 {[%clk 0:01:29.5]} 27. Rab1 {[%clk 0:01:09.5]} 27... Qe7
{[%clk 0:01:13.6]} 28. Qc5 {[%clk 0:00:59.4]} 28... Qxc5 {[%clk 0:01:07.4]} 29.
Rxc5 {[%clk 0:00:58.8]} 29... Kf8 {[%clk 0:00:54.2]} 30. Kh2 {[%clk 0:00:43.3]}
30... Ke7 {[%clk 0:00:53.8]} 31. Rcc1 {[%clk 0:00:27.8]} 31... Kd6 {[%clk
0:00:52.7]} 32. g3 {[%clk 0:00:27.9]} 32... Rh8 {[%clk 0:00:41.5]} 33. gxh4
{[%clk 0:00:26]} 33... Rxh4 {[%clk 0:00:42.4]} 34. Ra1 {[%clk 0:00:16.3]} 34...
Rh8 {[%clk 0:00:39.4]} 35. b4 {[%clk 0:00:16.6]} 35... Rb8 {[%clk 0:00:39.2]}
36. b5 {[%clk 0:00:15.6]} 36... cxb5 {[%clk 0:00:38.3]} 37. axb5 {[%clk
0:00:15.7]} 37... Rxa1 {[%clk 0:00:38.8]} 38. Rxa1 {[%clk 0:00:16]} 38... Rxb5
{[%clk 0:00:39.6]} 39. Ra7 {[%clk 0:00:14]} 39... Ke6 {[%clk 0:00:39.8]} 40.
Ra6+ {[%clk 0:00:12.8]} 40... Kf5 {[%clk 0:00:38.7]} 41. Ra7 {[%clk 0:00:11]}
41... Kg6 {[%clk 0:00:39.1]} 42. Ra6+ {[%clk 0:00:11.1]} 42... f6 {[%clk
0:00:39]} 43. Rd6 {[%clk 0:00:10.9]} 43... Kf5 {[%clk 0:00:38.4]} 44. Rd7 {[%clk
0:00:10.8]} 44... g5 {[%clk 0:00:38.4]} 45. Kg3 {[%clk 0:00:10.9]} 45... Ke6
{[%clk 0:00:38.4]} 46. Rd8 {[%clk 0:00:10.7]} 46... Rb2 {[%clk 0:00:37.7]} 47.
Re8+ {[%clk 0:00:09]} 47... Kf5 {[%clk 0:00:38.3]} 48. Rd8 {[%clk 0:00:08.6]}
48... Rd2 {[%clk 0:00:38.9]} 49. Rd7 {[%clk 0:00:07.2]} 49... Rd3 {[%clk
0:00:34.7]} 50. Kg2 {[%clk 0:00:06.3]} 50... Ke6 {[%clk 0:00:33.3]} 51. Rd8
{[%clk 0:00:06.5]} 51... f5 {[%clk 0:00:26]} 52. Re8+ {[%clk 0:00:06.1]} 52...
Kf7 {[%clk 0:00:25.5]} 53. Rd8 {[%clk 0:00:06.2]} 53... f4 {[%clk 0:00:24.4]}
54. exf4 {[%clk 0:00:02.8]} 54... gxf4 {[%clk 0:00:25.3]} 55. Rd7+ {[%clk
0:00:02.9]} 55... Ke6 {[%clk 0:00:25]} 56. Rd8 {[%clk 0:00:03]} 56... d4 {[%clk
0:00:22.4]} 57. Re8+ {[%clk 0:00:02.5]} 57... Kf5 {[%clk 0:00:22.2]} 58. h4
{[%clk 0:00:02.4]} 58... Ra3 {[%clk 0:00:17.6]} 59. h5 {[%clk 0:00:01.3]} 59...
d3 {[%clk 0:00:16.9]} 60. h6 {[%clk 0:00:01.2]} 60... Ra7 {[%clk 0:00:11.7]} 0-1